Cogmind - Beta 13 @@@ ROGUE MODE // 2024.04.07 @ 12:31:05 Player: Rizzen Result: Destroyed by C-17 Slicer with Blade Saw Performance ------------- Evolutions (2) 1000 Regions Visited (3) 600 Robots Destroyed (139) 695 Value Destroyed (2826) 2826 Prototype IDs (16) 320 Alien Tech Used (0) 0 Bonus (624) 624 TOTAL SCORE: 6065 Bonus ------- High Alert Combat Kills 624 Cogmind --------- Core Integrity 0/550 Matter 295/300 Energy 66/100 System Corruption 0% Temperature Cool (0) Movement Flying (105) Ox1 Location -8/Materials Parts ------- > --- POWER (1) -------- (None) > --- PROPULSION (4) --- Improved VTOL Module > --- UTILITY (4) ------ Improved Signal Interpreter Actuator Array Hacking Suite Hacking Suite > --- WEAPON (2) ------- Katana > --- INVENTORY (5) ---- Surge Thruster Improved Sensor Array Reaction Control System Hacking Suite Peak State ------------ > --- POWER ------------ Light Nuclear Core > --- PROPULSION ------- Surge Thruster Surge Thruster Improved VTOL Module Improved VTOL Module > --- UTILITY ---------- Improved Signal Interpreter Hacking Suite Hacking Suite Recalibrator > --- WEAPON ----------- Katana Katana > --- INVENTORY -------- VTOL Module Improved Sensor Array Actuator Array Hacking Suite Katana [Rating: 37] Favorites ----------- Power Light Ion Engine Engine Light Ion Engine Power Core Light Nuclear Core Propulsion VTOL Module Wheel Wheel Flight Unit VTOL Module Utility Hacking Suite Device Heat Sink Storage Small Storage Unit Processor Improved Signal Interpreter Hackware Hacking Suite Weapon Advanced Beam Cannon Energy Gun Advanced Beam Rifle Energy Cannon Advanced Beam Cannon Ballistic Gun Light Assault Rifle Impact Weapon Flail Slashing Weapon Katana Build | -11 -10 -9 -8 ------- Run | Yrd Mat Mat Mat Slots Evolved 4 | . . 2 2 Power . | . . . . Propulsion 2 | . . 1 1 Utility 2 | . . 1 1 Weapon . | . . . . Parts Attached 125 | 9 25 44 47 Power 27 | 1 5 13 8 Engine 20 | 1 5 13 1 Core 7 | . . . 7 Reactor . | . . . . Propulsion 39 | 4 5 15 15 Treads . | . . . . Leg . | . . . . Wheel 4 | 4 . . . Hover . | . . . . Flight 35 | . 5 15 15 Utility 31 | 2 6 7 16 Device 23 | 1 1 7 14 Storage 1 | 1 . . . Processor 5 | . 3 . 2 Hackware 2 | . 2 . . Protection . | . . . . Artifact . | . . . . Weapon 28 | 2 9 9 8 Energy Gun 12 | . 6 3 3 Energy Cannon 6 | . . 6 . Ballistic Gun 4 | 2 2 . . Ballistic Cannon . | . . . . Launcher . | . . . . Special Weapon . | . . . . Impact Weapon 1 | . 1 . . Slashing Weapon 5 | . . . 5 Piercing Weapon . | . . . . Special Melee Weapon . | . . . . Unidentified Prototypes 1 | . . 1 . Parts Lost 32 | . 9 12 11 Power 6 | . 3 2 1 Propulsion 18 | . 3 8 7 Utility 2 | . 1 . 1 Weapon 6 | . 2 2 2 Highest Loss Streak 8 | . 8 4 4 To Critical Strikes . | . . . . Average Slot Usage (%) 92 | . 88 98 89 Engine 8 | . 11 10 3 Core 1 | . . . 5 Wheel 1 | . 3 . . Flight 28 | . 24 32 28 Device 7 | . 3 10 8 Processor 5 | . 8 . 8 Hackware 16 | . 8 22 18 Energy Gun 10 | . 16 7 7 Energy Cannon 5 | . . 14 . Ballistic Gun 3 | . 9 . . Slashing Weapon 2 | . . . 9 Naked Turns . | . . . . Heaviest Build 14 | 12 12 13 14 Greatest Support 32 | 32 20 13 19 Greatest Overweight (x) 2 | 1 1 2 2 Average Overweight (x) . | . . . . Largest Inventory Capacity 8 | 8 8 5 5 Average Capacity 5 | 7 5 5 5 Most Carried 6 | 6 5 5 5 Average Carried 4 | . 3 4 4 Final Capacity 8 | 8 5 5 5 Final Carried 5 | 1 5 5 4 Class Distribution -------------------- 39% | Hacker-Sprinter 18% | Sprinter 12% | Scavenger-Mutant 11% | Hacker-Mutant 10% | Scavenger-Sprinter 7% | Mutant Dominant Class ---------------- Sprinter | -10/Materials Hacker-Sprinter | -9/Materials Hacker-Sprinter | -8/Materials Resources | -11 -10 -9 -8 ----------- Run | Yrd Mat Mat Mat Matter Collected 1480 | 338 307 410 425 Remotely . | . . . . Salvage Created 4692 | 117 879 2522 1174 Parts 309 | 7 65 162 75 Haulers Intercepted 11 | . 2 6 3 Recyclers Shooed 3 | . 1 2 . Parts Field Recycled . | . . . . Retrieved Matter . | . . . . Parts Self-Destructed . | . . . . Prevented . | . . . . Kills | -11 -10 -9 -8 ------- Run | Yrd Mat Mat Mat Combat Hostiles Destroyed 85 | . 12 50 23 Melee 18 | . . . 18 Guns 33 | . 12 16 5 Cannons 34 | . . 34 . Classes Destroyed 12 | 2 7 1 2 Worker 15 | . 8 6 1 Builder 4 | . 2 2 . Tunneler 2 | 2 . . . Hauler 11 | . 2 6 3 Recycler 7 | 1 2 4 . Mechanic 1 | . . . 1 Operator 5 | . 2 2 1 Watcher 11 | . 3 5 3 Swarmer 27 | . 6 18 3 Cutter 7 | . . . 7 Grunt 39 | . 6 22 11 Sentry 12 | . . 10 2 Best Kill Streak 14 | 2 7 14 8 Combat Bots Only 11 | . 4 11 7 Max Kills in Single Turn 2 | 1 2 2 2 Gunslinging 1 | . 1 . . Exploded . | . . . . Melee 1 | . . . 1 Uniques/NPCs Destroyed . | . . . . Combat | -11 -10 -9 -8 -------- Run | Yrd Mat Mat Mat Hostile Shots Fired 420 | . 93 215 112 Missed 143 | . 35 65 43 Damage Taken 3385 | . 599 1408 1378 Core 1029 | . 121 357 551 Absorbed by Shields 4 | . . 4 . Regen/Repaired (Parts) 78 | . . 21 57 Core Remaining (%) 53 | 100 51 10 . Volleys Fired 328 | 12 141 153 22 Largest 2 | 2 2 2 2 Hottest 136 | 40 112 136 122 Shots Fired 622 | 24 259 295 44 Gun 404 | 24 259 77 44 Cannon 218 | . . 218 . Launcher . | . . . . Special . | . . . . Kinetic 115 | 24 91 . . Thermal 507 | . 168 295 44 Explosive . | . . . . Electromagnetic . | . . . . Robot Hit Streak 11 | 6 5 10 11 Robot Miss Streak 7 | 1 7 5 3 Penetration Max . | . . . . Secondary Targets 2 | . 1 . 1 Max Gunslinging Chain 1 | . 1 . 1 Shots Hit Robots 379 | 16 129 154 80 Core Hits 168 | 5 47 76 40 Critical Kills 3 | . 1 2 . Critical Parts Destroyed . | . . . . Critical Strikes 25 | . 6 9 10 Burn 18 | . 5 7 6 Meltdown 2 | . . 2 . Destroy 1 | . 1 . . Sever 4 | . . . 4 Melee Attacks 90 | . . . 90 Impact . | . . . . Slashing 90 | . . . 90 Piercing . | . . . . Sneak Attacks 4 | . . . 4 Combat Hostiles . | . . . . Follow-up Attacks 10 | . . . 10 Damage Inflicted 7382 | 178 1547 3264 2393 Guns 3087 | 178 1547 742 620 Cannons 2522 | . . 2522 . Explosions . | . . . . Melee 1773 | . . . 1773 Ramming . | . . . . Kinetic 549 | 178 371 . . Thermal 5060 | . 1176 3264 620 Explosive . | . . . . Electromagnetic . | . . . . Impact . | . . . . Slashing 1773 | . . . 1773 Piercing . | . . . . Highest Corruption . | . . . . Average Corruption . | . . . . Corruption Purged . | . . . . Corruption Blocked . | . . . . Overload Shots . | . . . . Overflow Damage 81 | . . 21 60 Projectiles 21 | . . 21 . Explosions . | . . . . Melee 60 | . . . 60 Knockbacks . | . . . . Impact . | . . . . Kinetic . | . . . . Secondary . | . . . . Self-Inflicted Damage . | . . . . Shots . | . . . . Rammed . | . . . . Targets Rammed . | . . . . Kicked . | . . . . Crushed . | . . . . Highest Temperature 359 | . 308 359 164 Average Temperature 94 | . 80 107 76 Received Heat Transfer 768 | . 168 273 327 Effects 7 | . . 7 . Shutdowns 1 | . . 1 . Energy Bleed 1 | . . 1 . Interference 5 | . . 5 . Siege Activations . | . . . . Robots Corrupted . | . . . . Combat Hostiles . | . . . . Parts Fried . | . . . . Impact Corruptions . | . . . . Robots Melted 2 | . . 2 . Combat Hostiles . | . . . . Parts Melted 17 | . 3 11 3 Heat Transferred 11500 | . 3347 6562 1591 Parts Sabotaged . | . . . . Parts Stolen . | . . . . Parts Stripped . | . . . . Power Chain Reactions . | . . . . Alert | -11 -10 -9 -8 ------- Run | Yrd Mat Mat Mat Peak Influence 914 | 15 262 914 815 Initial 354 | . 9 95 354 Average 412 | 7 138 599 514 Maximum Alert Level 3 | . 1 3 3 Low Security (%) 31 | 100 83 6 . Level 1 16 | . 16 12 24 Level 2 36 | . . 44 68 Level 3 15 | . . 37 6 Level 4 . | . . . . Level 5 . | . . . . High Security . | . . . . Max Security . | . . . . Squads Dispatched 15 | . 3 7 5 Investigation 7 | . 1 5 1 Extermination . | . . . . Reinforcement 8 | . 2 2 4 Assault . | . . . . Garrison . | . . . . Intercept . | . . . . Searches Triggered . | . . . . Construction Impeded . | . . . . Haulers Reinforced . | . . . . Active Scanning Responses . | . . . . Cargo Convoy Interrupts . | . . . . Stealth | -11 -10 -9 -8 --------- Run | Yrd Mat Mat Mat Distress Signals 10 | . 2 6 2 Communications Jammed . | . . . . Distress Signals . | . . . . Times Spotted 134 | . 28 63 43 Peak Tracking Total 14 | . 5 14 8 Tactical Retreats 8 | . 3 2 3 Traps | -11 -10 -9 -8 ------- Run | Yrd Mat Mat Mat Traps Triggered 2 | . . 1 1 Indirectly . | . . . . Trap Hack Attempts . | . . . . Triggered . | . . . . Disarmed . | . . . . Reprogrammed . | . . . . Reused . | . . . . Traps Extracted . | . . . . Installed . | . . . . Triggered . | . . . . Machines | -11 -10 -9 -8 ---------- Run | Yrd Mat Mat Mat Machines Disabled 6 | . 1 3 2 Max in Single Turn 1 | . 1 1 1 Machines Repaired . | . . . . Machines Dismantled . | . . . . Machines Sabotaged . | . . . . Overloaded Fab Kills . | . . . . Hacking | -11 -10 -9 -8 --------- Run | Yrd Mat Mat Mat Machines Accessed 25 | . 7 12 6 Terminals 16 | . 5 7 4 Fabricators . | . . . . Repair Stations 3 | . . 2 1 Recycling Units 5 | . 2 2 1 Scanalyzers 1 | . . 1 . Garrison Access . | . . . . Total Hacks 53 | . 9 32 12 Successful 40 | . 8 22 10 Failed 13 | . 1 10 2 Catastrophic . | . . . . Database Lockouts . | . . . . Manual . | . . . . Terminals 30 | . 5 18 7 Fabricators . | . . . . Repair Stations 10 | . . 6 4 Recycling Units 9 | . 4 4 1 Scanalyzers 4 | . . 4 . Garrison Access . | . . . . Terminal Hacks 22 | . 5 12 5 Prototype ID Bank 9 | . 3 4 2 Recycling Unit Index 1 | . . . 1 Alert Level 6 | . 2 4 . Unreport Threat 2 | . . 2 . Locate Traps 1 | . . . 1 Dispatch Records 2 | . . 1 1 Registered Components 1 | . . 1 . Fabricator Hacks . | . . . . Repair Station Hacks 8 | . . 4 4 Scan Component 5 | . . 3 2 Repair 3 | . . 1 2 Recycling Unit Hacks 6 | . 3 2 1 Report Inventory 5 | . 2 2 1 Retrieve Components 1 | . 1 . . Scanalyzer 4 | . . 4 . Insert Component 2 | . . 2 . Analyze 2 | . . 2 . Garrison Access Hacks . | . . . . Unauthorized Hacks . | . . . . Terminals . | . . . . Fabricators . | . . . . Repair Stations . | . . . . Recycling Units . | . . . . Scanalyzers . | . . . . Garrison Access . | . . . . Data Cores Recovered 1 | . . . 1 Used 1 | . . . 1 Hacking Detections 16 | . 1 11 4 Full Trace Events 7 | . 1 6 . Feedback Events . | . . . . Feedback Blocked . | . . . . Robot Schematics Acquired . | . . . . Robots Built . | . . . . Authchips . | . . . . Time . | . . . . Total Robot Build Rating . | . . . . Part Schematics Acquired 2 | . . 2 . Parts Built . | . . . . Authchips . | . . . . Time . | . . . . Total Part Build Rating . | . . . . Parts Repaired 3 | . . 1 2 Time 143 | . . 51 92 Parts Recycled . | . . . . Recycled Matter . | . . . . Retrieved Matter . | . . . . Retrieved Components 10 | . 10 . . Parts Scanalyzed 2 | . . 2 . Part Schematics Acquired 2 | . . 2 . Parts Damaged . | . . . . Bothacking | -11 -10 -9 -8 ------------ Run | Yrd Mat Mat Mat Used RIF Installer . | . . . . Robots Hacked . | . . . . Non-combat . | . . . . Combat . | . . . . Robot Hacks Applied . | . . . . Relay Couplers Released . | . . . . Fabnet Peak Effective % . | . . . . Robots Rewired . | . . . . Allies Hacked . | . . . . Hacks Repelled . | . . . . Allies | -11 -10 -9 -8 -------- Run | Yrd Mat Mat Mat Total Allies . | . . . . Largest Group . | . . . . Highest-Rated Group . | . . . . Highest-Rated Ally . | . . . . Total Orders . | . . . . Ally Attacks . | . . . . Total Damage . | . . . . Kills . | . . . . Allies Corrupted . | . . . . Allies Melted . | . . . . Intel | -11 -10 -9 -8 ------- Run | Yrd Mat Mat Mat Robot Analysis Total . | . . . . Derelict Logs Recovered . | . . . . Drone Launches . | . . . . Drone Recoveries . | . . . . Exploration | -11 -10 -9 -8 ------------- Run | Yrd Mat Mat Mat Turns Passed 3637 | 128 1115 1339 1055 Spaces Moved 4773 | 77 1543 2026 1127 Core 3 | 3 . . . Treads . | . . . . Legs . | . . . . Wheels 184 | 74 110 . . Hover . | . . . . Flight 4586 | . 1433 2026 1127 Fastest Speed 26 | 50 32 30 26 Average Speed 37 | 90 35 32 43 Slowest Speed 200 | 100 112 200 180 Overloaded Moves . | . . . . Propulsion Burnouts . | . . . . Robots Hopped 19 | . 6 9 4 Cave-ins Triggered . | . . . . Exploration Rate (%) 62 | 5 99 99 46 Regions Visited 3 Branch Regions . Pre-discovered Areas . | . . . . Known Exits Taken 1 | . 1 . . Unknown Exits Taken 2 | 1 . 1 . Scrap Searched . | . . . . Spaces Dug 4 | . . . 4 Terrain Destroyed 4 | . . . 4 Melee 4 | . . . 4 Projectile . | . . . . AOE . | . . . . Terrain Rammed . | . . . . Walls Destroyed . | . . . . Machines Disabled . | . . . . Actions | -11 -10 -9 -8 --------- Run | Yrd Mat Mat Mat Total 5903 | 115 1864 2402 1522 Wait 459 | 2 123 127 207 Move 4732 | 76 1530 2007 1119 Hop 19 | . 6 9 4 Pick Up 94 | 12 24 32 26 Fast Attach 20 | . 4 9 7 Attach 51 | 8 14 14 15 Detach 3 | . 2 . 1 Swap 54 | 1 7 21 25 Drop 69 | 4 13 30 22 Fire 328 | 12 141 153 22 Melee 74 | . . . 74 Ram . | . . . . Kick . | . . . . Crush . | . . . . Escape Stasis . | . . . . Rewire . | . . . . Trap . | . . . . Miscellaneous . | . . . . Route ------- -11/Scrapyard -10/Materials (discovered 5 exits: *Mat x3 / [*Min x2]) -9/Materials (discovered 5 exits: *Mat x3 / [*Min x2]) -8/Materials (discovered 2 exits: [*Fac] / *Sto) History --------- Turn | Location | Event 46 | -11/Scrapyard | Discovered new exit (range 12) 129 | -11/Scrapyard | Entered Materials 209 | -10/Materials | Discovered new exit (range 16) 335 | -10/Materials | Discovered new exit (range 6) 502 | -10/Materials | Lost 8 parts (2p3n1u2w) 655 | -10/Materials | Discovered new exit (range 13) 710 | -10/Materials | Identified exit to Materials 725 | -10/Materials | Build established: Sprinter 773 | -10/Materials | Discovered exit to Materials (range 7) 1088 | -10/Materials | Discovered new exit (range 15) 1244 | -10/Materials | Entered another Materials area 1244 | -9/Materials | Evolved 2 slots: Propulsion x1, Utility x1 1278 | -9/Materials | Discovered new exit (range 16) 1550 | -9/Materials | Lost 4 parts (4n) 1551 | -9/Materials | Destroyed 11 combat bots 1691 | -9/Materials | Core integrity fell below 50% 1708 | -9/Materials | Lost 4 parts (2n2w) 1820 | -9/Materials | Build established: Scavenger-Mutant 1927 | -9/Materials | Discovered new exit (range 8) 2167 | -9/Materials | Discovered new exit (range 4) 2201 | -9/Materials | Core integrity fell below 20% 2224 | -9/Materials | Discovered new exit (range 16) 2287 | -9/Materials | Build established: Hacker-Sprinter 2523 | -9/Materials | Repaired Imp. Flight Unit 2581 | -9/Materials | Discovered new exit (range 4) 2583 | -9/Materials | Entered another Materials area 2583 | -8/Materials | Evolved 2 slots: Propulsion x1, Utility x1 2680 | -8/Materials | Lost 3 parts (3n) 2836 | -8/Materials | Repaired VTOL Module 2899 | -8/Materials | Repaired Adv. Beam Rifle 2961 | -8/Materials | Build established: Hacker-Mutant 3109 | -8/Materials | Discovered new exit (range 4) 3112 | -8/Materials | Identified exit to Storage 3334 | -8/Materials | Build established: Hacker-Sprinter 3365 | -8/Materials | Core integrity fell below 50% 3415 | -8/Materials | Destroyed 7 combat bots 3621 | -8/Materials | Discovered new exit (range 3) 3631 | -8/Materials | Core integrity fell below 20% 3638 | -8/Materials | Destroyed by C-17 Slicer with Blade Saw Last Messages --------------- 03598_ K-01 Serf destroyed. 03607_ C-17 Slicer destroyed. 03608_ Acquired 10 matter. 03610_ Acquired Reaction Control System. 03611_ Dropped Blade Saw. 03612_ ALERT: Suspicious intruders detected, dispatching Cutter reinforcements to area. 03612_ Acquired Blade Saw. 03615_ Acquired 10 matter. 03621_ EXIT=FOUND 03626_ Katana follow-up attack on C-17 Slicer. 03626_ Blade Saw destroyed. 03628_ Penetrated by Slug. 03629_ C-17 Slicer destroyed. 03630_ Surge Thruster destroyed. 03630_ Lgt. Nuclear Core destroyed. 03633_ Penetrated by Slug. 03635_ Surge Thruster destroyed. 03635_ Surge Thruster severed. 03636_ Imp. VTOL Module severed. Map ----- +----------------------------------------------------+ | | | | | | | | | | | | | | | | | | | | | | | | | | | | | | | | | | | | | ##???????????????????????????????????????????????? | | #???????????????????????????????????????????????? | | #????????######?????????????????????????????????? | | #????????# #?????????????????????????????????? | | #????????# ! #?????????????????????????????????? | | #?######## ####?##???????????????????????????? | | #?# # ###;;*######???????????????????? | | #?# # u /u!/%/=/%c@c= #?###???????????????? | | #?# # #=#### =""" ; #???????????????? | | #### # #?# c""" #H< #???????????????? | | %==+ [ # +!##?# """ ; #???????????????? | | #### *[% # #[#??# c + #???????????????? | | ???####+########!#??# """ # #?????? ???????? | | ####### !!%#??# """ # #???? #????????? | | %########+##?# """ #? ? #????????? | | %# [[!#?# #? #????????? | | = !# #?##########??[[ #????????? | | # !!####= ** # [/ #????????? | | # =%+=!/% =%! + [/ ! #????????? | | ###+##+#######% "" # #????????? | | #?# #?????#[ """ #?? +????????? | | #?# #?????# """ #???? #????????? | | ### ###############?????## #????????? | | == #????########### #????????? | | * *= #????# # #????????? | | * *! ###### !!!/ #????????? | | = ! + =!%!#????????????? | | ############### ###### !==#????????????? | | ## #### ##???####+######????????????? | | ## #### """ """ # ######## ##### #???????? | | ##+# ## """ """ # T #???????? | | # # """ """ + "" +???????? | +----------------------------------------------------+ Best States ------------- Heat Dissipation 45 Energy Generation 14 Energy Capacity 280 Matter Stores 300 Matter Capacity 300 Sight Range 18 Robot Scan Range 15 Terrain Scan Density 10 Evasion (%) 64 Targeting Accuracy 8 Offensive Hacking 20 Item Schematics ----------------- Cld. Ion Engine | -9/Materials | Scanalyzed Adv. Beam Rifle | -9/Materials | Scanalyzed Robot Schematics ------------------ None Fabricated ------------ Nothing Alien Tech Used ----------------- None Achievements -------------- Dynamic Key Challenges ------------ None Game ------ Seed LayeredProjectionRigger Manual? 0 Play Time 01:25:20 Cumulative 17.1 hours Start 2024.04.07 @ 11:06:05 End 2024.04.07 @ 12:31:05 Sessions 1 Manual Loads 0 Difficulty Rogue Special Mode None Game No. 13 Rogue 13 Adventurer 0 Explorer 0 Win Type - Total 0 Types 0/0/0/0/0/0/0/0/0 Lore% 14 Gallery% 16 Achievement% 14 Wizard Run 0 Options --------- Layout 1 ASCII 0 Keyboard 0 Movement Mouse Keybinds 0 Fullscreen 1 Font 32/SmallcapsGlow Map View 50x35 Zoom Use 0% Tactical HUD 1 Map Filters NONE Filters NONE Steam 0 RUN: db17d1b3-6064-4a97-801e-be35b2371741